[Event "*** SCC Grand Prix: Titled Tuesday Blitz"]
[Site "Chess.com"]
[Date "2020.08.11"]
[Round "10"]
[White "Chuchofrio1"]
[Black "GAusal"]
[Result "0-1"]
[WhiteElo "2265"]
[BlackElo "2162"]
[TimeControl "180+1"]
[EndTime "11:53:18 PDT"]
[Termination "GAusal won by checkmate"]

1. d4 {[%clk 0:03:00.9]} 1... d5 {[%clk 0:02:46.3]} 2. c4 {[%clk 0:03:00.5]}
2... e5 {[%clk 0:02:36.3]} 3. dxe5 {[%clk 0:02:59.9]} 3... d4 {[%clk 0:02:36.9]}
4. Nf3 {[%clk 0:02:58.9]} 4... Nc6 {[%clk 0:02:32.5]} 5. Nbd2 {[%clk 0:02:58.8]}
5... Nge7 {[%clk 0:02:27.7]} 6. Nb3 {[%clk 0:02:58.5]} 6... Ng6 {[%clk
0:02:24.6]} 7. Nbxd4 {[%clk 0:02:56.3]} 7... Ngxe5 {[%clk 0:02:20.6]} 8. Nxe5
{[%clk 0:02:49.5]} 8... Nxe5 {[%clk 0:02:19.6]} 9. Nb5 {[%clk 0:02:47]} 9... c6
{[%clk 0:02:15.8]} 10. Qxd8+ {[%clk 0:02:46.1]} 10... Kxd8 {[%clk 0:02:11.4]}
11. Na3 {[%clk 0:02:26]} 11... Kc7 {[%clk 0:02:06.6]} 12. b3 {[%clk 0:02:25.9]}
12... Bb4+ {[%clk 0:01:58.9]} 13. Kd1 {[%clk 0:02:24.3]} 13... Bf5 {[%clk
0:01:54.6]} 14. Bf4 {[%clk 0:02:15.3]} 14... Rhd8+ {[%clk 0:01:48.3]} 15. Kc1
{[%clk 0:02:15.1]} 15... Bxa3# {[%clk 0:01:41.9]} 0-1

[Event "*** SCC Grand Prix: Titled Tuesday Blitz"]
[Site "Chess.com"]
[Date "2020.08.11"]
[Round "10"]
[White "Rubinstein_Akiba"]
[Black "DrMamaliga"]
[Result "1-0"]
[WhiteElo "2453"]
[BlackElo "2211"]
[TimeControl "180+1"]
[EndTime "11:53:42 PDT"]
[Termination "Rubinstein_Akiba won by resignation"]

1. e4 {[%clk 0:03:00.9]} 1... e5 {[%clk 0:03:00]} 2. Nf3 {[%clk 0:02:59.2]} 2...
Nc6 {[%clk 0:02:59.8]} 3. Bb5 {[%clk 0:02:58.6]} 3... a6 {[%clk 0:02:59.4]} 4.
Ba4 {[%clk 0:02:58.3]} 4... d6 {[%clk 0:02:59.8]} 5. O-O {[%clk 0:02:53.9]} 5...
Bg4 {[%clk 0:02:57.6]} 6. h3 {[%clk 0:02:51.6]} 6... h5 {[%clk 0:02:55.5]} 7.
Bxc6+ {[%clk 0:02:46.9]} 7... bxc6 {[%clk 0:02:54.2]} 8. d3 {[%clk 0:02:41.5]}
8... Qf6 {[%clk 0:02:34.6]} 9. Nbd2 {[%clk 0:02:32.1]} 9... Ne7 {[%clk
0:02:22.2]} 10. Re1 {[%clk 0:01:54.1]} 10... Be6 {[%clk 0:02:12]} 11. Nf1 {[%clk
0:01:50.5]} 11... Bg4 {[%clk 0:01:54.2]} 12. hxg4 {[%clk 0:01:42.4]} 12... hxg4
{[%clk 0:01:54.3]} 13. N3h2 {[%clk 0:01:43]} 1-0

[Event "*** SCC Grand Prix: Titled Tuesday Blitz"]
[Site "Chess.com"]
[Date "2020.08.11"]
[Round "10"]
[White "Sanyura"]
[Black "temus_galaktionov"]
[Result "1-0"]
[WhiteElo "2440"]
[BlackElo "2664"]
[TimeControl "180+1"]
[EndTime "11:53:52 PDT"]
[Termination "Sanyura won by resignation"]

1. e4 {[%clk 0:03:00.9]} 1... c6 {[%clk 0:03:00.9]} 2. Nc3 {[%clk 0:02:56.9]}
2... g6 {[%clk 0:03:01.8]} 3. d4 {[%clk 0:02:56.2]} 3... Bg7 {[%clk 0:03:02.7]}
4. Nf3 {[%clk 0:02:56.2]} 4... d6 {[%clk 0:03:03.6]} 5. h3 {[%clk 0:02:56.4]}
5... Nd7 {[%clk 0:02:56.1]} 6. Bc4 {[%clk 0:02:55.5]} 6... e5 {[%clk 0:02:56.6]}
7. dxe5 {[%clk 0:02:20.2]} 7... dxe5 {[%clk 0:02:57.5]} 8. Ng5 {[%clk
0:02:19.5]} 8... Nh6 {[%clk 0:02:55.7]} 9. O-O {[%clk 0:02:12.1]} 9... O-O
{[%clk 0:02:54.5]} 10. a4 {[%clk 0:02:12.1]} 10... Qe7 {[%clk 0:02:52.4]} 11. b3
{[%clk 0:02:11.2]} 11... Re8 {[%clk 0:02:48]} 12. Qf3 {[%clk 0:02:08.2]} 12...
Nc5 {[%clk 0:02:45.9]} 13. Ba3 {[%clk 0:01:57.5]} 13... Qxg5 {[%clk 0:02:44.7]}
14. Bxc5 {[%clk 0:01:57.3]} 14... Be6 {[%clk 0:02:42]} 15. Bxe6 {[%clk
0:01:54.2]} 15... Rxe6 {[%clk 0:02:42.9]} 16. Rad1 {[%clk 0:01:54.4]} 16... b6
{[%clk 0:02:43]} 17. Be3 {[%clk 0:01:49.4]} 17... Qe7 {[%clk 0:02:43.4]} 18. Rd3
{[%clk 0:01:48.2]} 18... Rd8 {[%clk 0:02:42.6]} 19. Rfd1 {[%clk 0:01:49.1]}
19... Red6 {[%clk 0:02:42.4]} 20. Qe2 {[%clk 0:01:33.3]} 20... Rxd3 {[%clk
0:02:37]} 21. Rxd3 {[%clk 0:01:34.2]} 21... Kf8 {[%clk 0:02:33.4]} 22. a5 {[%clk
0:01:29.2]} 22... Rxd3 {[%clk 0:02:28.2]} 23. Qxd3 {[%clk 0:01:30.1]} 23... b5
{[%clk 0:02:28.2]} 24. b4 {[%clk 0:01:23.2]} 24... a6 {[%clk 0:02:27.1]} 25. Bc5
{[%clk 0:01:22.8]} 1-0

[Event "*** SCC Grand Prix: Titled Tuesday Blitz"]
[Site "Chess.com"]
[Date "2020.08.11"]
[Round "10"]
[White "wild_cat99"]
[Black "Grandelicious"]
[Result "0-1"]
[WhiteElo "2632"]
[BlackElo "2756"]
[TimeControl "180+1"]
[EndTime "11:54:06 PDT"]
[Termination "Grandelicious won by resignation"]

1. Nf3 {[%clk 0:03:00.9]} 1... d5 {[%clk 0:02:59.5]} 2. e3 {[%clk 0:03:00.8]}
2... Nf6 {[%clk 0:02:59.2]} 3. c4 {[%clk 0:03:00.9]} 3... e6 {[%clk 0:02:59.8]}
4. b3 {[%clk 0:03:01.1]} 4... b6 {[%clk 0:03:00.5]} 5. Bb2 {[%clk 0:03:01.5]}
5... Bb7 {[%clk 0:03:01.1]} 6. g3 {[%clk 0:03:01.8]} 6... Nbd7 {[%clk 0:02:52]}
7. Bg2 {[%clk 0:03:01.7]} 7... Nc5 {[%clk 0:02:51.3]} 8. Ne5 {[%clk 0:02:50.4]}
8... Bd6 {[%clk 0:02:43.5]} 9. d4 {[%clk 0:02:30.4]} 9... dxc4 {[%clk
0:02:11.7]} 10. Bxb7 {[%clk 0:02:23.5]} 10... Nxb7 {[%clk 0:01:55.5]} 11. Nxc4
{[%clk 0:01:55]} 11... Bb4+ {[%clk 0:01:47.4]} 12. Nbd2 {[%clk 0:01:51.8]} 12...
Qd5 {[%clk 0:01:36.2]} 13. Kf1 {[%clk 0:01:51.4]} 13... Qxh1+ {[%clk 0:01:35.4]}
0-1

[Event "*** SCC Grand Prix: Titled Tuesday Blitz"]
[Site "Chess.com"]
[Date "2020.08.11"]
[Round "10"]
[White "Roaccutane"]
[Black "Andrii_Prydun"]
[Result "1-0"]
[WhiteElo "2560"]
[BlackElo "2349"]
[TimeControl "180+1"]
[EndTime "11:54:07 PDT"]
[Termination "Roaccutane won by resignation"]

1. d4 {[%clk 0:02:56]} 1... d5 {[%clk 0:03:00.1]} 2. Nc3 {[%clk 0:02:56.1]} 2...
Nf6 {[%clk 0:02:59]} 3. Bg5 {[%clk 0:02:56.3]} 3... e6 {[%clk 0:02:56.1]} 4. e4
{[%clk 0:02:56.3]} 4... dxe4 {[%clk 0:02:53.6]} 5. Nxe4 {[%clk 0:02:57.2]} 5...
Nbd7 {[%clk 0:02:45.7]} 6. Nf3 {[%clk 0:02:55.9]} 6... Be7 {[%clk 0:02:43.9]} 7.
Nxf6+ {[%clk 0:02:55.9]} 7... Bxf6 {[%clk 0:02:42.5]} 8. Be3 {[%clk 0:02:54.9]}
8... O-O {[%clk 0:02:14.7]} 9. Bd3 {[%clk 0:02:54.9]} 9... c5 {[%clk 0:02:14]}
10. c3 {[%clk 0:02:53.5]} 10... cxd4 {[%clk 0:02:13.7]} 11. Nxd4 {[%clk
0:02:53.4]} 11... Nc5 {[%clk 0:02:13.3]} 12. Bc2 {[%clk 0:02:52.9]} 12... Bd7
{[%clk 0:02:12.3]} 13. Qh5 {[%clk 0:02:42.5]} 13... g6 {[%clk 0:01:59.9]} 14.
Qxc5 {[%clk 0:02:42.6]} 14... e5 {[%clk 0:01:48.2]} 15. Nf3 {[%clk 0:02:38.8]}
15... Bc6 {[%clk 0:01:48.1]} 16. O-O {[%clk 0:02:27]} 16... Bxf3 {[%clk
0:01:46.8]} 17. gxf3 {[%clk 0:02:27.9]} 17... Qd7 {[%clk 0:01:45.7]} 18. Qc4
{[%clk 0:02:20]} 18... h5 {[%clk 0:01:43.6]} 19. Bxg6 {[%clk 0:02:09.3]} 19...
Kh8 {[%clk 0:01:44.1]} 20. Bxh5 {[%clk 0:02:06.9]} 20... Rac8 {[%clk 0:01:38.9]}
21. Qe4 {[%clk 0:02:02]} 21... Rg8+ {[%clk 0:01:35.4]} 22. Bg4 {[%clk
0:02:01.8]} 22... Qe6 {[%clk 0:01:34.3]} 23. Kh1 {[%clk 0:01:57.9]} 1-0

[Event "*** SCC Grand Prix: Titled Tuesday Blitz"]
[Site "Chess.com"]
[Date "2020.08.11"]
[Round "10"]
[White "AleksanderHnydiuk"]
[Black "eCztery"]
[Result "1-0"]
[WhiteElo "2553"]
[BlackElo "2429"]
[TimeControl "180+1"]
[EndTime "11:54:37 PDT"]
[Termination "AleksanderHnydiuk won by resignation"]

1. e4 {[%clk 0:03:00.9]} 1... c5 {[%clk 0:02:59.1]} 2. Nf3 {[%clk 0:03:01]} 2...
g6 {[%clk 0:02:57.9]} 3. d4 {[%clk 0:02:59.9]} 3... cxd4 {[%clk 0:02:58.8]} 4.
Qxd4 {[%clk 0:02:59.9]} 4... Nf6 {[%clk 0:02:56.6]} 5. Bb5 {[%clk 0:02:59.7]}
5... a6 {[%clk 0:02:51.9]} 6. e5 {[%clk 0:02:59.3]} 6... Ng8 {[%clk 0:02:40.5]}
7. e6 {[%clk 0:02:48.9]} 7... Nf6 {[%clk 0:02:38]} 8. exf7+ {[%clk 0:02:41.5]}
8... Kxf7 {[%clk 0:02:38.9]} 9. Bc4+ {[%clk 0:02:41.6]} 9... Kg7 {[%clk
0:02:24.9]} 10. O-O {[%clk 0:02:37.2]} 10... Nc6 {[%clk 0:02:23.5]} 11. Qh4
{[%clk 0:02:34.9]} 11... h6 {[%clk 0:02:17.5]} 12. Nc3 {[%clk 0:02:31.7]} 12...
e6 {[%clk 0:02:15.2]} 13. Qg3 {[%clk 0:02:08.4]} 13... d5 {[%clk 0:02:09.2]} 14.
Bd3 {[%clk 0:02:02.2]} 14... g5 {[%clk 0:01:39]} 15. Bxg5 {[%clk 0:01:56.3]}
15... hxg5 {[%clk 0:01:38.4]} 16. Nxg5 {[%clk 0:01:53.2]} 16... Nh5 {[%clk
0:01:20.9]} 17. Nxe6+ {[%clk 0:01:46.7]} 17... Kf6 {[%clk 0:01:19.6]} 18. Qg6+
{[%clk 0:01:45.5]} 1-0

[Event "*** SCC Grand Prix: Titled Tuesday Blitz"]
[Site "Chess.com"]
[Date "2020.08.11"]
[Round "10"]
[White "Karina_Ivanova"]
[Black "rududuyk"]
[Result "0-1"]
[WhiteElo "2200"]
[BlackElo "2108"]
[TimeControl "180+1"]
[EndTime "11:54:48 PDT"]
[Termination "rududuyk won by resignation"]

1. d4 {[%clk 0:02:59.3]} 1... e6 {[%clk 0:03:00]} 2. Nf3 {[%clk 0:02:59.1]} 2...
f5 {[%clk 0:03:00.1]} 3. g3 {[%clk 0:02:58.8]} 3... Nf6 {[%clk 0:03:00.6]} 4.
Bg2 {[%clk 0:02:58.8]} 4... Be7 {[%clk 0:02:59.1]} 5. O-O {[%clk 0:02:58.6]}
5... O-O {[%clk 0:02:59]} 6. c4 {[%clk 0:02:58.5]} 6... d6 {[%clk 0:02:59.4]} 7.
Nc3 {[%clk 0:02:58.3]} 7... Ne4 {[%clk 0:02:59.2]} 8. Qc2 {[%clk 0:02:57.7]}
8... Nxc3 {[%clk 0:02:58.7]} 9. Qxc3 {[%clk 0:02:57.7]} 9... a5 {[%clk
0:02:58.5]} 10. b3 {[%clk 0:02:57.4]} 10... Nc6 {[%clk 0:02:56.4]} 11. Bb2
{[%clk 0:02:57.2]} 11... Bf6 {[%clk 0:02:54.8]} 12. Qd3 {[%clk 0:02:55.2]} 12...
e5 {[%clk 0:02:33.9]} 13. dxe5 {[%clk 0:02:52.7]} 13... dxe5 {[%clk 0:02:33.4]}
14. Qxd8 {[%clk 0:02:49.9]} 14... Rxd8 {[%clk 0:02:32.3]} 15. Rad1 {[%clk
0:02:49.9]} 15... Be6 {[%clk 0:02:29.9]} 16. Nd2 {[%clk 0:02:30.6]} 16... Kf7
{[%clk 0:02:17.1]} 17. Nb1 {[%clk 0:02:27.2]} 17... e4 {[%clk 0:02:07.8]} 18.
Bxf6 {[%clk 0:02:25.8]} 18... Kxf6 {[%clk 0:02:07.4]} 19. e3 {[%clk 0:02:23.8]}
19... Nb4 {[%clk 0:01:51.9]} 20. Nc3 {[%clk 0:02:20.6]} 20... c6 {[%clk
0:01:50.8]} 21. Rxd8 {[%clk 0:02:15.9]} 21... Rxd8 {[%clk 0:01:49.8]} 22. Rd1
{[%clk 0:02:16.8]} 22... Rxd1+ {[%clk 0:01:48.3]} 23. Nxd1 {[%clk 0:02:16.4]}
23... Nxa2 {[%clk 0:01:47.9]} 24. Bf1 {[%clk 0:02:13.9]} 24... Ke5 {[%clk
0:01:42.8]} 25. Be2 {[%clk 0:02:13.1]} 25... Kd6 {[%clk 0:01:37.7]} 26. Nb2
{[%clk 0:02:01.6]} 26... Kc5 {[%clk 0:01:26.8]} 27. Kf1 {[%clk 0:02:00.2]} 27...
Kb4 {[%clk 0:01:25.2]} 28. Bd1 {[%clk 0:02:00.4]} 28... Nc1 {[%clk 0:01:24.1]}
29. Na4 {[%clk 0:01:54.5]} 29... Nxb3 {[%clk 0:01:22.3]} 30. Nb6 {[%clk
0:01:54.3]} 30... Bxc4+ {[%clk 0:01:14]} 0-1

[Event "*** SCC Grand Prix: Titled Tuesday Blitz"]
[Site "Chess.com"]
[Date "2020.08.11"]
[Round "10"]
[White "korkmaz16"]
[Black "FMJoseHerrera"]
[Result "0-1"]
[WhiteElo "2345"]
[BlackElo "2502"]
[TimeControl "180+1"]
[EndTime "11:54:49 PDT"]
[Termination "FMJoseHerrera won by checkmate"]

1. d4 {[%clk 0:03:00.1]} 1... Nf6 {[%clk 0:02:59.8]} 2. Nf3 {[%clk 0:02:59.7]}
2... g6 {[%clk 0:02:59.6]} 3. c4 {[%clk 0:02:59.4]} 3... c5 {[%clk 0:02:59]} 4.
d5 {[%clk 0:02:58.6]} 4... b5 {[%clk 0:02:58.9]} 5. cxb5 {[%clk 0:02:55.2]} 5...
a6 {[%clk 0:02:59.4]} 6. b6 {[%clk 0:02:38.2]} 6... Bg7 {[%clk 0:02:59.1]} 7.
Nc3 {[%clk 0:02:35.8]} 7... d6 {[%clk 0:02:59.4]} 8. e4 {[%clk 0:02:21.2]} 8...
O-O {[%clk 0:02:59.2]} 9. Be2 {[%clk 0:02:18.3]} 9... Qxb6 {[%clk 0:02:59.1]}
10. O-O {[%clk 0:02:18.2]} 10... a5 {[%clk 0:02:59.1]} 11. Nd2 {[%clk
0:02:15.8]} 11... Ba6 {[%clk 0:02:58]} 12. Nc4 {[%clk 0:02:15.8]} 12... Qc7
{[%clk 0:02:58.1]} 13. Bg5 {[%clk 0:02:03.8]} 13... Nbd7 {[%clk 0:02:57.5]} 14.
f4 {[%clk 0:02:03]} 14... Rfb8 {[%clk 0:02:57]} 15. Qd2 {[%clk 0:02:02.3]} 15...
Rb4 {[%clk 0:02:55.5]} 16. b3 {[%clk 0:01:51]} 16... a4 {[%clk 0:02:51.9]} 17.
e5 {[%clk 0:01:05.6]} 17... dxe5 {[%clk 0:02:51.2]} 18. fxe5 {[%clk 0:01:04.3]}
18... Nxe5 {[%clk 0:02:51.7]} 19. Nxe5 {[%clk 0:01:04.3]} 19... Qxe5 {[%clk
0:02:51.6]} 20. Bxa6 {[%clk 0:01:04.3]} 20... Rxa6 {[%clk 0:02:48.2]} 21. Nxa4
{[%clk 0:01:02.8]} 21... Ne4 {[%clk 0:02:43.9]} 22. Qe2 {[%clk 0:00:59.9]} 22...
Qxg5 {[%clk 0:02:14.8]} 23. Qxa6 {[%clk 0:00:39.5]} 23... Bd4+ {[%clk
0:02:14.4]} 24. Kh1 {[%clk 0:00:38.5]} 24... Ng3+ {[%clk 0:02:14.3]} 25. hxg3
{[%clk 0:00:36.1]} 25... Qh6# {[%clk 0:02:14.7]} 0-1

[Event "*** SCC Grand Prix: Titled Tuesday Blitz"]
[Site "Chess.com"]
[Date "2020.08.11"]
[Round "10"]
[White "AliKa2810"]
[Black "lelajavakhishvili"]
[Result "0-1"]
[WhiteElo "2594"]
[BlackElo "2453"]
[TimeControl "180+1"]
[EndTime "11:54:51 PDT"]
[Termination "lelajavakhishvili won by resignation"]

1. d4 {[%clk 0:03:00.9]} 1... Nf6 {[%clk 0:02:59.4]} 2. Bg5 {[%clk 0:03:01.3]}
2... c5 {[%clk 0:02:55.7]} 3. d5 {[%clk 0:02:59]} 3... Qb6 {[%clk 0:02:52.5]} 4.
Nf3 {[%clk 0:02:36.3]} 4... Qxb2 {[%clk 0:02:44.7]} 5. Nbd2 {[%clk 0:02:35.7]}
5... Nxd5 {[%clk 0:02:33.3]} 6. e4 {[%clk 0:02:02.5]} 6... Nc3 {[%clk
0:02:26.1]} 7. Qc1 {[%clk 0:02:03]} 7... Qxc1+ {[%clk 0:02:25.4]} 8. Rxc1 {[%clk
0:02:03.9]} 8... Nc6 {[%clk 0:02:17.7]} 9. Bc4 {[%clk 0:01:52.4]} 9... e6 {[%clk
0:02:14.6]} 10. O-O {[%clk 0:01:49.7]} 10... b5 {[%clk 0:02:14.6]} 11. Bd3
{[%clk 0:01:34.6]} 11... c4 {[%clk 0:02:14.1]} 12. Nxc4 {[%clk 0:01:33.4]} 12...
bxc4 {[%clk 0:02:13]} 13. Bxc4 {[%clk 0:01:34.3]} 13... Be7 {[%clk 0:02:11.2]}
14. Rfe1 {[%clk 0:01:29.7]} 14... Bxg5 {[%clk 0:02:08.1]} 15. Nxg5 {[%clk
0:01:30.6]} 15... O-O {[%clk 0:02:05.1]} 16. e5 {[%clk 0:01:27.6]} 16... h6
{[%clk 0:01:53.6]} 17. Nf3 {[%clk 0:01:25.8]} 17... Rb8 {[%clk 0:01:50.8]} 18.
Nd2 {[%clk 0:01:22.7]} 18... Rd8 {[%clk 0:01:43.8]} 19. Re3 {[%clk 0:01:22.1]}
19... Nd5 {[%clk 0:01:39.5]} 20. Bxd5 {[%clk 0:01:19.1]} 20... exd5 {[%clk
0:01:39.6]} 21. f4 {[%clk 0:01:20]} 21... d6 {[%clk 0:01:37.6]} 22. c4 {[%clk
0:01:18.3]} 22... d4 {[%clk 0:01:36.2]} 23. Ree1 {[%clk 0:01:15.7]} 23... dxe5
{[%clk 0:01:35.8]} 24. fxe5 {[%clk 0:01:16.1]} 24... Bf5 {[%clk 0:01:33.5]} 0-1

[Event "*** SCC Grand Prix: Titled Tuesday Blitz"]
[Site "Chess.com"]
[Date "2020.08.11"]
[Round "10"]
[White "barbara25"]
[Black "SanchezKelvin"]
[Result "1-0"]
[WhiteElo "2216"]
[BlackElo "2333"]
[TimeControl "180+1"]
[EndTime "11:55:26 PDT"]
[Termination "barbara25 won on time"]

1. e4 {[%clk 0:03:00.9]} 1... c5 {[%clk 0:02:42.2]} 2. Nf3 {[%clk 0:02:58.8]}
2... d6 {[%clk 0:02:42.2]} 3. d4 {[%clk 0:02:55.1]} 3... cxd4 {[%clk 0:02:43.1]}
4. Nxd4 {[%clk 0:02:53.4]} 4... Nf6 {[%clk 0:02:43.2]} 5. Nc3 {[%clk 0:02:52.7]}
5... g6 {[%clk 0:02:41.3]} 6. f3 {[%clk 0:02:52.1]} 6... Bg7 {[%clk 0:02:40.9]}
7. Be3 {[%clk 0:02:49.9]} 7... Nc6 {[%clk 0:02:40.5]} 8. Qd2 {[%clk 0:02:49.8]}
8... O-O {[%clk 0:02:39.7]} 9. O-O-O {[%clk 0:02:49.8]} 9... Nxd4 {[%clk
0:02:40]} 10. Bxd4 {[%clk 0:02:49.8]} 10... Be6 {[%clk 0:02:40.9]} 11. Kb1
{[%clk 0:02:46.1]} 11... Qc7 {[%clk 0:02:39.7]} 12. g4 {[%clk 0:02:45.2]} 12...
Rfc8 {[%clk 0:02:39]} 13. h4 {[%clk 0:02:45.3]} 13... Qa5 {[%clk 0:02:38.8]} 14.
Nd5 {[%clk 0:02:44.6]} 14... Qxd2 {[%clk 0:02:36.6]} 15. Nxf6+ {[%clk
0:02:44.6]} 15... Bxf6 {[%clk 0:02:35.3]} 16. Rxd2 {[%clk 0:02:45.1]} 16... Bxd4
{[%clk 0:02:33.9]} 17. Rxd4 {[%clk 0:02:46]} 17... h6 {[%clk 0:02:31.8]} 18. c3
{[%clk 0:02:45.7]} 18... Kg7 {[%clk 0:02:31.3]} 19. Be2 {[%clk 0:02:46]} 19...
g5 {[%clk 0:02:31.4]} 20. h5 {[%clk 0:02:42.4]} 20... Kf6 {[%clk 0:02:31]} 21.
a3 {[%clk 0:02:42.4]} 21... Ke5 {[%clk 0:02:30.8]} 22. Rf1 {[%clk 0:02:40.1]}
22... b6 {[%clk 0:02:25.6]} 23. Kc2 {[%clk 0:02:40.1]} 23... Rc5 {[%clk
0:02:18]} 24. Kd2 {[%clk 0:02:40.1]} 24... Kf4 {[%clk 0:02:18]} 25. b4 {[%clk
0:02:33.9]} 25... Rc7 {[%clk 0:02:12.7]} 26. Rc1 {[%clk 0:02:33.6]} 26... a5
{[%clk 0:02:11.8]} 27. b5 {[%clk 0:02:28]} 27... Rc5 {[%clk 0:01:39.7]} 28. a4
{[%clk 0:02:26.9]} 28... d5 {[%clk 0:01:31.8]} 29. exd5+ {[%clk 0:02:23.2]} 1-0

[Event "*** SCC Grand Prix: Titled Tuesday Blitz"]
[Site "Chess.com"]
[Date "2020.08.11"]
[Round "10"]
[White "binbin239"]
[Black "Nikithebest"]
[Result "1-0"]
[WhiteElo "2557"]
[BlackElo "2432"]
[TimeControl "180+1"]
[EndTime "11:55:28 PDT"]
[Termination "binbin239 won by resignation"]

1. d4 {[%clk 0:03:00.9]} 1... Nf6 {[%clk 0:02:59.5]} 2. c4 {[%clk 0:03:00.7]}
2... c5 {[%clk 0:02:59.7]} 3. Nf3 {[%clk 0:02:59.9]} 3... cxd4 {[%clk
0:02:59.1]} 4. Nxd4 {[%clk 0:02:59.7]} 4... e5 {[%clk 0:02:59.8]} 5. Nb5 {[%clk
0:02:59.4]} 5... d5 {[%clk 0:02:59.9]} 6. cxd5 {[%clk 0:02:59.6]} 6... Bc5
{[%clk 0:03:00.6]} 7. g3 {[%clk 0:02:59.9]} 7... O-O {[%clk 0:02:59.3]} 8. N5c3
{[%clk 0:02:59.5]} 8... Re8 {[%clk 0:02:42.6]} 9. Bg2 {[%clk 0:02:58.1]} 9... e4
{[%clk 0:02:40.3]} 10. O-O {[%clk 0:02:54]} 10... Bf5 {[%clk 0:02:36.8]} 11. Bg5
{[%clk 0:02:38.3]} 11... Nbd7 {[%clk 0:02:34.7]} 12. Na4 {[%clk 0:02:15.2]}
12... Bd6 {[%clk 0:02:34.4]} 13. Nac3 {[%clk 0:02:10.2]} 13... Qb6 {[%clk
0:02:30.9]} 14. Nd2 {[%clk 0:02:06.4]} 14... h6 {[%clk 0:02:28.4]} 15. Nc4
{[%clk 0:02:03.6]} 15... Qc7 {[%clk 0:02:18.2]} 16. Nb5 {[%clk 0:02:00]} 16...
Qxc4 {[%clk 0:02:11.9]} 17. Nxd6 {[%clk 0:01:59.9]} 17... Qxd5 {[%clk
0:02:05.5]} 18. Qxd5 {[%clk 0:01:50.8]} 18... Nxd5 {[%clk 0:02:02.4]} 19. Nxe8
{[%clk 0:01:50.3]} 19... hxg5 {[%clk 0:02:01.8]} 20. Nd6 {[%clk 0:01:49.8]}
20... Be6 {[%clk 0:01:55.4]} 21. Nxe4 {[%clk 0:01:48.6]} 21... f6 {[%clk
0:01:53.4]} 22. Rfd1 {[%clk 0:01:47.4]} 22... N7b6 {[%clk 0:01:52.7]} 23. Nc5
{[%clk 0:01:47.3]} 23... Bf7 {[%clk 0:01:51.1]} 24. Nxb7 {[%clk 0:01:47.3]}
24... Rb8 {[%clk 0:01:51.1]} 25. Nd6 {[%clk 0:01:47.3]} 25... Be6 {[%clk
0:01:50.4]} 26. Rac1 {[%clk 0:01:43.3]} 26... Kf8 {[%clk 0:01:06.4]} 27. Ne4
{[%clk 0:01:35.1]} 27... Na4 {[%clk 0:01:02.4]} 28. b3 {[%clk 0:01:33.3]} 28...
Nab6 {[%clk 0:00:57.2]} 29. Nc5 {[%clk 0:01:33.1]} 29... Bf7 {[%clk 0:00:57]}
30. Bxd5 {[%clk 0:01:31.5]} 1-0

[Event "*** SCC Grand Prix: Titled Tuesday Blitz"]
[Site "Chess.com"]
[Date "2020.08.11"]
[Round "10"]
[White "Xeslu"]
[Black "Andrakhanova"]
[Result "1-0"]
[WhiteElo "2297"]
[BlackElo "1731"]
[TimeControl "180+1"]
[EndTime "11:55:30 PDT"]
[Termination "Xeslu won by resignation"]

1. e4 {[%clk 0:03:00.9]} 1... c5 {[%clk 0:02:59.4]} 2. Nf3 {[%clk 0:03:01]} 2...
e6 {[%clk 0:02:59.7]} 3. c4 {[%clk 0:03:00.2]} 3... Nc6 {[%clk 0:02:58.9]} 4.
Nc3 {[%clk 0:03:00.6]} 4... Nge7 {[%clk 0:02:57.8]} 5. d4 {[%clk 0:02:59.6]}
5... d6 {[%clk 0:02:54.5]} 6. dxc5 {[%clk 0:02:52.9]} 6... dxc5 {[%clk
0:02:55.4]} 7. Qxd8+ {[%clk 0:02:52.9]} 7... Kxd8 {[%clk 0:02:49.9]} 8. Be3
{[%clk 0:02:51.7]} 8... b6 {[%clk 0:02:49]} 9. Rd1+ {[%clk 0:02:50.7]} 9... Bd7
{[%clk 0:02:48.6]} 10. Ng5 {[%clk 0:02:48.9]} 10... Ne5 {[%clk 0:02:41.6]} 11.
f4 {[%clk 0:02:45.7]} 11... Ng4 {[%clk 0:02:24]} 12. Bg1 {[%clk 0:02:39.3]}
12... Ke8 {[%clk 0:02:09.7]} 13. Nxf7 {[%clk 0:02:36.4]} 13... Kxf7 {[%clk
0:02:09.3]} 14. Rxd7 {[%clk 0:02:36.4]} 14... Ke8 {[%clk 0:02:06.9]} 15. Rd1
{[%clk 0:02:31.3]} 15... Rd8 {[%clk 0:02:06]} 16. h3 {[%clk 0:02:30.3]} 16...
Nf6 {[%clk 0:02:02.6]} 17. Rxd8+ {[%clk 0:02:23.6]} 17... Kxd8 {[%clk
0:02:02.2]} 18. g4 {[%clk 0:02:23]} 18... Nc6 {[%clk 0:02:00]} 19. e5 {[%clk
0:02:20.6]} 19... Nd7 {[%clk 0:01:58.2]} 20. Bg2 {[%clk 0:02:20.4]} 20... Nb4
{[%clk 0:01:54.6]} 21. Kd2 {[%clk 0:02:16.6]} 21... a5 {[%clk 0:01:49.5]} 22. a3
{[%clk 0:02:16.2]} 22... Na6 {[%clk 0:01:49.6]} 23. Be3 {[%clk 0:02:10.2]} 23...
Be7 {[%clk 0:01:45.8]} 24. Rd1 {[%clk 0:02:10]} 24... Kc8 {[%clk 0:01:46]} 25.
Bc6 {[%clk 0:02:07.1]} 25... Ndb8 {[%clk 0:01:40.2]} 26. Be4 {[%clk 0:02:03.1]}
26... g6 {[%clk 0:01:39.2]} 27. Ke2 {[%clk 0:02:02.9]} 27... Rd8 {[%clk
0:01:37.2]} 28. Rxd8+ {[%clk 0:01:59.9]} 28... Kxd8 {[%clk 0:01:38.1]} 29. Bf2
{[%clk 0:01:49.4]} 29... Nc7 {[%clk 0:01:36.7]} 30. h4 {[%clk 0:01:49.3]} 30...
Nd7 {[%clk 0:01:35.6]} 31. g5 {[%clk 0:01:42.2]} 31... Nf8 {[%clk 0:01:29.8]}
32. Na4 {[%clk 0:01:35.7]} 32... b5 {[%clk 0:01:27.2]} 33. Nxc5 {[%clk
0:01:28.3]} 33... bxc4 {[%clk 0:01:21.7]} 34. Nb7+ {[%clk 0:01:27.7]} 34... Kd7
{[%clk 0:01:19.9]} 35. Nxa5 {[%clk 0:01:28.1]} 35... c3 {[%clk 0:01:18.2]} 36.
b4 {[%clk 0:01:27.9]} 36... Nb5 {[%clk 0:01:16.5]} 37. Bc6+ {[%clk 0:01:27.3]}
1-0